bitfinex/quotes_BTCUSD_20260311
["timestamp","ask_amount","ask_price","bid_price","bid_amount"]
[1773216439508,0.12695206,69746.0,69733.0,0.0013511]
[1773216439854,0.12695206,69746.0,69734.0,0.00116]
[1773216440645,0.12695206,69746.0,69734.0,0.0013511]
[1773216441071,0.12318501,69744.0,69735.0,0.00116]
[1773216441368,0.12318501,69744.0,69729.0,0.0002403]
[1773216441369,0.12318501,69744.0,69736.0,0.00116]
[1773216441534,0.12318501,69744.0,69729.0,0.0002403]
[1773216441759,0.12318501,69744.0,69730.0,0.00116]
[1773216441914,0.12318501,69739.0,69720.0,0.0002]
[1773216442113,0.12300238,69739.0,69726.0,0.00116]
[1773216442536,0.12300238,69739.0,69727.0,0.00116]
[1773216443202,0.12318501,69737.0,69727.0,0.00116]
[1773216443591,0.12318501,69737.0,69728.0,0.0002]
[1773216445372,0.12318501,69735.0,69728.0,0.0002]
[1773216446023,0.12318501,69735.0,69727.0,0.00116]
[1773216446226,0.12318501,69735.0,69721.0,0.0002]
[1773216446427,0.12318501,69735.0,69726.0,0.00116]
[1773216446590,0.12318501,69735.0,69726.0,0.00073]
[1773216446779,0.12318501,69735.0,69727.0,0.00116]
[1773216447628,0.12185394,69733.0,69727.0,0.00116]
[1773216447831,0.12167129,69733.0,69727.0,0.00116]
[1773216448543,0.07170103,69734.0,69727.0,0.00116]
[1773216449724,0.07170103,69735.0,69727.0,0.00116]
[1773216449928,0.001,69734.0,69727.0,0.00116]
[1773216450436,0.001,69734.0,69727.0,0.00136]
[1773216450857,0.12185394,69733.0,69727.0,0.00136]
[1773216451095,0.12185394,69733.0,69728.0,0.00116]
[1773216451286,0.12185394,69733.0,69729.0,0.00116]
[1773216451575,0.12185394,69733.0,69730.0,0.00116]
[1773216451779,0.12185394,69731.0,69724.0,0.0002]
[1773216451979,0.12185394,69731.0,69726.0,0.00116]
[1773216453644,0.07170514,69730.0,69727.0,0.00116]
[1773216453847,0.12185394,69729.0,69721.0,0.0002]
[1773216454050,0.12185394,69729.0,69728.0,0.00116]
[1773216454401,0.07170514,69730.0,69728.0,0.00116]
[1773216454601,0.07170514,69730.0,69729.0,0.00116]
[1773216454854,0.07170514,69730.0,69721.0,0.0002]
[1773216455111,0.07170514,69730.0,69722.0,0.00116]
[1773216455678,0.12110146,69731.0,69722.0,0.00116]
[1773216455679,0.19355797,69732.0,69723.0,0.07171234]
[1773216455981,0.19355797,69732.0,69722.0,0.07287234]
[1773216456739,0.07168997,69745.0,69724.0,0.2290066]
[1773216456976,0.07168997,69745.0,69725.0,0.12001469]
[1773216457622,0.12185394,69744.0,69725.0,0.12001469]
[1773216458006,0.07169178,69743.0,69727.0,0.12001469]
[1773216458218,0.07169178,69743.0,69728.0,0.12117469]
[1773216458408,0.12185394,69739.0,69728.0,1e-08]
[1773216460544,0.11586235,69737.0,69728.0,1e-08]
[1773216461058,0.11567973,69737.0,69728.0,1e-08]
[1773216462867,0.07169897,69736.0,69728.0,1e-08]
[1773216464237,0.11586235,69735.0,69728.0,1e-08]
[1773216465591,0.07170103,69734.0,69728.0,1e-08]
[1773216467195,0.11586235,69733.0,69728.0,1e-08]
[1773216467545,0.11586235,69731.0,69729.0,0.00116]
[1773216468079,0.07170309,69732.0,69729.0,0.00116]
[1773216470282,0.1924254,69733.0,69729.0,0.00116]
[1773216470483,0.12072287,69732.0,69730.0,0.00116]
[1773216470788,0.12072287,69730.0,69720.0,0.07191523]
[1773216471008,0.12072287,69730.0,69722.0,0.00116]
[1773216471825,0.12072287,69730.0,69719.0,0.0002]
[1773216472022,0.17080463,69730.0,69720.0,0.00116]
[1773216472224,0.12072287,69729.0,69720.0,0.00116]
[1773216472401,0.12072287,69727.0,69716.0,0.07171954]
[1773216472736,0.26358863,69727.0,69717.0,0.00116]
[1773216473035,0.12072287,69726.0,69717.0,0.00116]
[1773216473189,0.00013109,69723.0,69715.0,0.0007172]
[1773216473399,0.12072287,69722.0,69716.0,0.00116]
[1773216474225,0.12109535,69722.0,69716.0,0.00116]
[1773216474532,0.12072287,69720.0,69716.0,0.00116]
[1773216474739,0.12054019,69720.0,69717.0,0.00116]
[1773216475136,0.26340595,69720.0,69717.0,0.00116]
[1773216475438,0.14286576,69720.0,69717.0,0.00116]
[1773216475612,0.14286576,69720.0,69718.0,0.00116]
[1773216475812,0.0717144,69721.0,69719.0,0.00116]
[1773216476013,0.0717144,69721.0,69714.0,1e-08]
[1773216476014,0.12072287,69720.0,69714.0,1e-08]
[1773216476240,0.12072287,69720.0,69715.0,0.00116]
[1773216476446,0.12072287,69718.0,69715.0,0.00116]
[1773216476648,0.12072287,69718.0,69716.0,0.00116]
[1773216476857,0.12072287,69718.0,69704.0,0.07173189]
[1773216476858,0.26358863,69718.0,69717.0,1e-08]
[1773216477056,0.14286576,69718.0,69717.0,0.00116]
[1773216477227,0.14286576,69718.0,69714.0,0.0002]
[1773216477228,0.12188286,69717.0,69714.0,0.0002]
[1773216477433,0.12072287,69716.0,69714.0,0.0002]
[1773216477647,0.12072287,69716.0,69715.0,0.00116]
[1773216478831,0.12072287,69716.0,69703.0,0.0002403]
[1773216478832,0.19244241,69716.0,69703.0,0.0002403]
[1773216478951,0.14286576,69715.0,69704.0,0.00116]
[1773216479155,0.0011603,69714.0,69704.0,0.00116]
[1773216479409,0.0007949,69714.0,69703.0,0.07197311]
[1773216479551,0.0007949,69714.0,69705.0,0.00116]
[1773216479751,0.14286576,69715.0,69705.0,0.00116]
[1773216480162,0.14286576,69715.0,69693.0,0.22902844]
[1773216480556,0.12072287,69709.0,69694.0,0.00116]
[1773216480753,0.12133511,69707.0,69694.0,0.07290203]
[1773216481136,0.26386815,69707.0,69694.0,0.07290203]
[1773216481365,0.12133511,69707.0,69694.0,0.07290203]
[1773216482138,0.12133511,69707.0,69694.0,0.00116]
[1773216482366,0.12133511,69707.0,69685.0,0.22950678]
[1773216482367,0.12072287,69703.0,69685.0,0.22950678]
[1773216482523,0.12072287,69699.0,69686.0,0.00116]
[1773216482724,0.12072287,69697.0,69687.0,0.00116]
[1773216482946,0.14231064,69697.0,69687.0,0.00116]
[1773216483113,0.07155532,69698.0,69687.0,0.00116]
[1773216483362,0.12072287,69697.0,69685.0,0.13211]
[1773216483527,0.12072287,69695.0,69688.0,0.00116]
[1773216483721,0.12109512,69695.0,69688.0,0.00116]
[1773216484126,0.00037225,69695.0,69688.0,0.00116]
[1773216484328,0.07173745,69699.0,69688.0,0.09798042]
[1773216484530,0.07173745,69699.0,69688.0,0.00153225]
[1773216484968,0.12072287,69698.0,69688.0,0.00153225]
[1773216485368,0.12072287,69698.0,69688.0,0.07328054]
[1773216485369,0.00115999,69697.0,69688.0,0.07328054]
[1773216486345,0.07289993,69697.0,69688.0,0.07328054]
[1773216486540,0.07289993,69697.0,69688.0,0.00153225]
[1773216486964,0.07173994,69697.0,69688.0,0.00153225]
[1773216487184,0.07102256,69697.0,69688.0,0.00153225]
[1773216487496,0.07102256,69697.0,69688.0,0.07328033]
[1773216487708,0.07102256,69697.0,69688.0,0.10966361]
[1773216488087,0.00097728,69696.0,69688.0,0.10966361]
[1773216488293,0.07174115,69695.0,69688.0,0.00153225]
[1773216489304,0.07271755,69696.0,69688.0,0.00153225]
[1773216489507,0.12072287,69713.0,69689.0,0.10736624]
[1773216489709,0.07172366,69714.0,69691.0,0.10736624]
[1773216489908,0.12072287,69712.0,69691.0,0.10736624]
[1773216490132,0.07172366,69714.0,69691.0,0.10736624]
[1773216490133,0.12072287,69709.0,69691.0,0.10736624]
[1773216490311,0.12072287,69707.0,69692.0,0.07174424]
[1773216490790,0.12072287,69707.0,69693.0,0.00116]
[1773216491211,0.07172777,69708.0,69679.0,0.07175716]
[1773216491212,0.12072287,69702.0,69679.0,0.07175716]
[1773216491411,0.12072287,69699.0,69682.0,0.00116]
[1773216491621,0.12054013,69699.0,69682.0,0.00116]
[1773216491823,0.12054013,69699.0,69685.0,0.0002]
[1773216492138,0.12094288,69697.0,69685.0,0.0002]
[1773216492348,0.07174012,69696.0,69685.0,0.0002]
[1773216492515,0.12072287,69695.0,69685.0,0.0002]
[1773216493747,0.12072287,69694.0,69686.0,0.00116]
[1773216494122,0.12072287,69695.0,69687.0,0.00116]
[1773216494326,0.12072287,69695.0,69678.0,0.0002]
[1773216494327,0.07174218,69694.0,69688.0,0.00116]
[1773216494455,0.12072287,69693.0,69689.0,0.00116]
[1773216494660,0.12072287,69693.0,69678.0,0.0002]
[1773216494880,0.22280916,69688.0,69674.0,0.01124]
[1773216495180,0.22280916,69688.0,69676.0,0.00116]
[1773216495181,0.12072287,69685.0,69676.0,0.00116]
[1773216495383,0.12072287,69685.0,69677.0,0.00116]
[1773216495611,0.12072287,69685.0,69678.0,0.00116]
[1773216496217,0.12072287,69685.0,69679.0,0.00116]
[1773216496431,0.12072287,69683.0,69674.0,1e-08]
[1773216496579,0.12072287,69683.0,69675.0,0.00116]
[1773216497330,0.07174424,69692.0,69677.0,0.10570805]
[1773216497679,0.12072287,69691.0,69676.0,0.00116]
[1773216497875,0.12072287,69689.0,69676.0,0.00116]
[1773216498330,0.07174836,69688.0,69676.0,0.07292015]
[1773216498554,0.19247123,69688.0,69676.0,0.07292015]
[1773216499113,0.07174836,69688.0,69676.0,0.17804132]
[1773216500179,0.07174836,69688.0,69677.0,0.10471206]
[1773216500384,0.14179774,69689.0,69678.0,0.10471206]
[1773216500584,0.14179774,69690.0,69678.0,0.10471206]
[1773216500784,0.07174162,69695.0,69678.0,0.10471206]
[1773216502147,0.11431332,69694.0,69678.0,0.17647072]
[1773216502544,0.07174321,69693.0,69679.0,0.10486027]
[1773216504786,0.07174012,69696.0,69681.0,0.10375843]
[1773216505190,0.11431332,69695.0,69681.0,0.10375843]
[1773216505365,0.11431332,69695.0,69682.0,0.00116]
[1773216505826,0.11431332,69695.0,69683.0,0.00116]
[1773216506058,0.11431332,69695.0,69684.0,0.00116]
[1773216506253,0.11431332,69695.0,69685.0,0.00116]
[1773216506452,0.11431332,69695.0,69686.0,0.00116]
[1773216506656,0.11431332,69695.0,69687.0,0.00116]
[1773216506999,0.1860555,69694.0,69688.0,0.00116]
[1773216507226,0.11431332,69693.0,69689.0,0.00116]
[1773216507413,0.11431332,69693.0,69690.0,0.00116]
[1773216507617,0.11431332,69693.0,69677.0,0.17479015]
[1773216507834,0.11431332,69693.0,69684.0,0.0002]
[1773216508146,0.11431332,69693.0,69685.0,0.00116]
[1773216508994,0.11431332,69691.0,69677.0,0.0002]
[1773216509191,0.11431332,69691.0,69678.0,0.00116]
[1773216509509,0.11431332,69691.0,69677.0,0.0002]
[1773216509510,0.11431332,69691.0,69679.0,0.00116]
[1773216509910,0.11431332,69691.0,69680.0,0.00116]
[1773216510296,0.11431332,69691.0,69677.0,0.0002]
[1773216510729,0.07174424,69692.0,69678.0,0.00116]
[1773216510730,0.11431332,69687.0,69678.0,0.00116]
[1773216510948,0.11431332,69683.0,69661.0,0.22902844]
[1773216511243,0.11402822,69680.0,69663.0,0.10901763]
[1773216511647,0.22762398,69680.0,69663.0,0.10901763]
[1773216512198,0.11431332,69680.0,69663.0,0.10901763]
[1773216512398,0.11431332,69680.0,69663.0,0.10912954]
[1773216512638,0.11431332,69680.0,69664.0,0.11017763]
[1773216513201,0.11431332,69680.0,69660.0,0.07177674]
[1773216513202,0.11431332,69673.0,69660.0,0.00116]
[1773216513409,0.17080463,69671.0,69646.0,0.0717914]
[1773216513674,0.17080463,69670.0,69651.0,0.00116]
[1773216513875,0.11413062,69669.0,69651.0,0.00116]
[1773216514151,0.11431332,69660.0,69640.0,0.20045293]
[1773216514277,0.11431332,69660.0,69642.0,0.00116]
[1773216514728,0.11431332,69660.0,69643.0,0.10901763]
[1773216514897,0.11431332,69665.0,69643.0,0.10901763]
[1773216515300,0.07177308,69664.0,69645.0,0.10901763]
[1773216515506,0.12631798,69663.0,69645.0,0.10901763]
[1773216516262,0.12631798,69663.0,69651.0,0.0002]
[1773216516432,0.12631798,69663.0,69652.0,0.00116]
[1773216517285,0.18608846,69662.0,69652.0,0.00116]
[1773216517503,0.01191611,69661.0,69652.0,0.00116]
[1773216518058,0.12607716,69661.0,69652.0,0.00116]
[1773216518252,0.12607716,69661.0,69653.0,0.00116]
[1773216518548,0.12607716,69661.0,69654.0,0.00116]
[1773216519358,0.0717772,69660.0,69654.0,0.00116]
[1773216519559,0.01182705,69659.0,69644.0,0.0002]
[1773216519772,0.01182705,69659.0,69645.0,0.00116]
[1773216521511,0.07177926,69658.0,69645.0,0.00116]
[1773216522105,0.10406645,69657.0,69645.0,0.00116]
[1773216523259,0.10406645,69656.0,69643.0,0.00116]
[1773216523461,0.07178235,69655.0,69643.0,0.00116]
[1773216523769,0.1758488,69655.0,69643.0,0.00116]
[1773216523971,0.07177926,69658.0,69643.0,0.07295401]
[1773216524311,0.20656045,69667.0,69643.0,0.07295401]
[1773216524312,0.07176484,69672.0,69644.0,0.10579399]
[1773216524510,0.0116395,69669.0,69644.0,0.10579399]
[1773216525089,0.00011159,69673.0,69650.0,0.14838874]
[1773216525354,0.00011159,69673.0,69651.0,0.10695399]
[1773216525355,0.10406645,69672.0,69651.0,0.10695399]
[1773216525489,0.07176587,69671.0,69653.0,0.07178441]
[1773216525819,0.10406645,69670.0,69652.0,0.07294489]
[1773216526141,0.10406645,69670.0,69653.0,0.00116]
[1773216526324,0.07176587,69671.0,69654.0,0.10579399]
[1773216526531,0.00022001,69670.0,69654.0,0.10579399]
[1773216527322,0.00022001,69670.0,69655.0,0.00116]
[1773216527523,0.00022001,69670.0,69656.0,0.10579399]
[1773216527914,0.07176793,69669.0,69656.0,0.10579399]
[1773216528241,0.10406645,69668.0,69655.0,0.00116]
[1773216528545,0.07176793,69669.0,69655.0,0.00116]
[1773216528692,0.10406645,69668.0,69655.0,0.00116]
[1773216529095,0.10406645,69667.0,69656.0,0.00116]
[1773216529506,0.10406645,69667.0,69657.0,0.00116]
[1773216530569,0.07177102,69666.0,69658.0,0.00116]
[1773216530765,0.07177102,69666.0,69659.0,0.00116]
[1773216530969,0.07177102,69666.0,69651.0,0.07178625]
[1773216530970,0.14195378,69666.0,69652.0,0.10572877]
[1773216531132,0.00022001,69670.0,69651.0,0.07178625]
[1773216531133,0.00022001,69670.0,69661.0,0.10572877]
[1773216531330,0.08337854,69674.0,69662.0,0.10688877]
[1773216531554,0.08337854,69674.0,69663.0,0.00116]
[1773216532747,0.01161564,69674.0,69663.0,0.0729331]
[1773216532949,0.07176109,69676.0,69666.0,0.10551377]
[1773216533458,0.00022001,69677.0,69666.0,0.10551377]
[1773216534493,0.0114899,69679.0,69666.0,0.10551377]
[1773216535147,0.0717543,69683.0,69667.0,0.07176999]
[1773216535293,0.00022001,69688.0,69667.0,0.07176999]
[1773216535294,0.07174998,69687.0,69667.0,0.07176999]
[1773216536286,0.00022001,69688.0,69670.0,0.14838874]
[1773216536483,0.00022001,69688.0,69671.0,0.00116]
[1773216537152,0.00022001,69681.0,69672.0,0.07176484]
[1773216537554,0.00022001,69681.0,69673.0,0.00116]
[1773216538034,0.00022001,69681.0,69672.0,0.07176484]
[1773216538237,0.00022001,69681.0,69674.0,0.00116]
[1773216538592,0.00022001,69681.0,69675.0,0.00116]
[1773216538994,0.00022001,69681.0,69673.0,0.001]
[1773216539195,0.00022001,69681.0,69675.0,0.07176175]
[1773216539600,0.00022001,69681.0,69676.0,0.00116]
[1773216540365,0.00022001,69688.0,69676.0,0.00116]
[1773216541127,0.00022001,69688.0,69677.0,0.07175969]
[1773216542041,0.00022001,69688.0,69678.0,0.00116]
[1773216542564,0.00022001,69688.0,69679.0,0.00116]
[1773216542764,0.00022001,69688.0,69677.0,0.07175969]
[1773216542973,0.00022001,69688.0,69680.0,0.00116]
[1773216543388,0.00022001,69688.0,69681.0,0.00116]
[1773216543552,0.00022001,69688.0,69682.0,0.00116]
[1773216543755,0.00022001,69688.0,69683.0,0.00116]
[1773216544158,0.00022001,69688.0,69671.0,0.07176587]
[1773216544367,0.00022001,69688.0,69672.0,0.00116]
[1773216544684,0.00071774,69680.0,69672.0,0.00116]
[1773216545011,0.00071774,69680.0,69671.0,0.07176587]
[1773216545215,0.00071774,69680.0,69672.0,0.00116]
[1773216545642,0.00071774,69680.0,69673.0,0.00116]
[1773216545858,0.00071774,69680.0,69674.0,0.00116]
[1773216546107,0.00022001,69688.0,69673.0,0.00011159]
[1773216546324,0.14207917,69699.0,69675.0,0.00116]
[1773216546536,0.00023,69700.0,69679.0,0.1483727]
[1773216547165,0.13111389,69699.0,69675.0,0.00116]
[1773216547582,0.20285113,69699.0,69676.0,0.07176072]
[1773216548947,0.13111389,69698.0,69676.0,0.07176072]
[1773216549236,0.14200853,69698.0,69677.0,0.00116]
[1773216549369,0.13111389,69698.0,69677.0,0.00116]
[1773216549565,0.13111389,69697.0,69677.0,0.00116]
[1773216549764,0.13111389,69695.0,69676.0,0.07176072]
[1773216549969,0.13111389,69695.0,69678.0,0.00116]
[1773216550440,0.13111389,69695.0,69679.0,0.00116]
[1773216550870,0.13111389,69695.0,69676.0,0.07176072]
[1773216551075,0.13111389,69695.0,69677.0,0.00116]
[1773216551294,0.13211389,69695.0,69678.0,0.00116]
[1773216551503,0.13111389,69694.0,69678.0,0.00116]
[1773216551707,0.13111389,69694.0,69679.0,0.00116]
[1773216551908,0.13111389,69692.0,69679.0,0.00116]
[1773216552632,0.13111389,69691.0,69679.0,0.00116]
[1773216554205,0.13111389,69689.0,69679.0,0.00116]
[1773216555732,0.13211389,69689.0,69679.0,0.00116]
[1773216556280,0.13111389,69687.0,69680.0,0.00116]
[1773216557423,0.13311389,69687.0,69680.0,0.00116]
[1773216558021,0.13111389,69686.0,69680.0,0.00116]
[1773216559389,0.13111389,69686.0,69681.0,0.00116]
[1773216559541,0.13111389,69686.0,69682.0,0.00116]
[1773216559745,0.13111389,69686.0,69683.0,0.00116]
[1773216560392,0.13211389,69686.0,69683.0,0.00116]
[1773216560597,0.13211389,69686.0,69684.0,0.00116]
[1773216560775,0.13111389,69686.0,69684.0,1e-08]
[1773216560953,0.13311389,69686.0,69674.0,0.13784]
[1773216561152,0.13311389,69686.0,69675.0,0.00116]
[1773216561554,0.13311389,69686.0,69676.0,0.00116]
[1773216561786,0.27433347,69686.0,69676.0,0.00116]
[1773216561993,0.14221958,69685.0,69676.0,0.00116]
[1773216562172,0.13211389,69686.0,69676.0,0.00116]
[1773216562576,0.13111389,69686.0,69676.0,0.00116]
[1773216563168,0.13211389,69686.0,69676.0,0.00116]
[1773216563774,0.13111389,69686.0,69676.0,0.00116]
[1773216564183,0.13111389,69686.0,69677.0,0.00116]
[1773216564602,0.13111389,69686.0,69678.0,0.00116]
[1773216564804,0.13111389,69686.0,69679.0,0.00116]
[1773216565007,0.13111389,69686.0,69680.0,0.00116]
[1773216565205,0.13111389,69686.0,69666.0,0.0002]
[1773216565415,0.17080463,69679.0,69656.0,0.13784]
[1773216565620,0.13111389,69670.0,69662.0,0.00116]
[1773216565848,0.14221958,69670.0,69662.0,0.00116]
[1773216566068,0.04950019,69666.0,69663.0,0.00116]
[1773216566218,0.13111389,69665.0,69664.0,0.00116]
[1773216566440,0.13111389,69665.0,69664.0,2e-07]
[1773216566851,0.13111389,69665.0,69655.0,0.00136]
[1773216567065,0.13111389,69665.0,69651.0,0.0002]
[1773216567066,0.13111389,69664.0,69654.0,0.00116]
[1773216567299,0.13111389,69664.0,69650.0,0.00023]
[1773216567300,0.13111389,69663.0,69655.0,1e-08]
[1773216567518,0.04950019,69664.0,69655.0,1e-08]
[1773216567519,0.13111389,69657.0,69655.0,1e-08]
[1773216567846,0.14221958,69657.0,69654.0,0.00116]
[1773216567973,0.00011176,69664.0,69654.0,0.00116]
[1773216568209,0.13111389,69663.0,69654.0,0.00116]
[1773216568899,0.00011176,69664.0,69654.0,0.00116]
[1773216569106,0.13111389,69663.0,69654.0,0.00116]
[1773216569849,0.00011176,69664.0,69654.0,0.00116]
[1773216570050,0.00011176,69664.0,69657.0,0.0002]
[1773216572437,0.13111389,69674.0,69657.0,0.0002]
[1773216572738,0.13111389,69674.0,69657.0,0.00031176]
[1773216574144,0.13211389,69674.0,69657.0,0.00031176]
[1773216574544,0.13311389,69674.0,69657.0,0.00031176]
[1773216575959,0.13111389,69674.0,69657.0,0.00031176]
[1773216576456,0.13311389,69674.0,69657.0,0.00031176]
[1773216576593,0.13211389,69674.0,69657.0,0.00031176]
[1773216576807,0.13111389,69674.0,69657.0,0.00031176]
[1773216576985,0.1313339,69674.0,69657.0,0.00031176]
[1773216577186,0.13111389,69669.0,69654.0,0.00116]
[1773216577538,0.13122569,69669.0,69654.0,0.00116]
[1773216579672,0.13322569,69669.0,69654.0,0.00116]
[1773216580155,0.13122569,69669.0,69654.0,0.00116]
[1773216580302,0.13222569,69669.0,69654.0,0.00116]
[1773216580503,0.13322569,69669.0,69654.0,0.00116]
[1773216581229,0.13322569,69669.0,69650.0,0.0002]
[1773216581412,0.11576858,69669.0,69649.0,0.00088]
[1773216581617,0.13111389,69668.0,69649.0,0.00088]
[1773216582022,0.0021118,69669.0,69649.0,0.00088]
[1773216582231,0.13111389,69668.0,69649.0,0.00088]
[1773216583707,0.0001118,69669.0,69649.0,0.00088]
[1773216584363,0.00022001,69674.0,69650.0,0.14850046]
[1773216584561,0.00022001,69674.0,69650.0,0.14861226]
[1773216587462,0.13111389,69673.0,69650.0,0.0001118]
[1773216589221,0.20287865,69673.0,69650.0,0.0718993]
[1773216589392,0.13111389,69672.0,69650.0,0.0718993]
[1773216589813,0.13111389,69669.0,69650.0,0.0718993]
[1773216590419,0.13111389,69668.0,69650.0,0.0718993]
[1773216590801,0.14229731,69668.0,69650.0,0.0718993]
[1773216590984,0.13111389,69671.0,69650.0,0.0718993]
[1773216591237,0.14229731,69671.0,69650.0,0.22023221]
[1773216591437,0.18565059,69675.0,69650.0,0.22023221]
[1773216591438,0.07176419,69673.0,69650.0,0.22023221]
[1773216592356,0.07176381,69673.0,69650.0,0.07173175]
[1773216592562,0.13111389,69672.0,69650.0,0.07173175]
[1773216592776,0.2734112,69672.0,69650.0,0.07193175]
[1773216592979,0.14229731,69671.0,69650.0,0.07193175]
[1773216593152,0.14251732,69673.0,69650.0,0.07193175]
[1773216593489,0.07176484,69672.0,69650.0,0.07193175]
[1773216594130,0.18541802,69676.0,69650.0,0.07193175]
[1773216594131,0.00071774,69680.0,69650.0,0.22066221]
[1773216594295,0.07247503,69680.0,69650.0,0.22066221]
[1773216595215,0.07247503,69680.0,69650.0,0.22015963]
[1773216595786,0.00071774,69680.0,69650.0,0.22015963]
[1773216596389,0.00071774,69680.0,69650.0,0.22215963]
[1773216596591,0.00071774,69680.0,69650.0,0.22115963]
[1773216596803,0.13183163,69680.0,69650.0,0.22015963]
[1773216597006,0.13183163,69680.0,69650.0,0.22115963]
[1773216597623,0.13183163,69680.0,69650.0,0.22215963]
[1773216597851,0.13183163,69680.0,69650.0,0.22115963]
[1773216598383,0.00071774,69680.0,69650.0,0.22115963]
[1773216598725,0.00071774,69680.0,69651.0,0.1355125]
[1773216598965,0.00071774,69680.0,69651.0,0.135345]
[1773216599324,0.00071774,69680.0,69660.0,0.14816551]
[1773216599529,0.00071774,69680.0,69670.0,0.04945587]
[1773216599773,0.00022001,69681.0,69671.0,0.00112]
[1773216599774,1e-08,69681.0,69671.0,0.00112]
[1773216599948,1e-08,69681.0,69672.0,0.07176484]
[1773216600569,0.1311139,69681.0,69672.0,0.07176484]
[1773216600736,1e-08,69681.0,69672.0,0.07176484]
[1773216600936,0.00011183,69681.0,69672.0,0.07176484]
[1773216601357,0.13111389,69680.0,69672.0,0.07176484]
[1773216601678,0.13111389,69680.0,69673.0,0.00112]
[1773216601884,0.07175674,69680.0,69674.0,0.00112]
[1773216602030,0.13111389,69679.0,69675.0,0.00081556]
[1773216602230,0.00011183,69681.0,69675.0,0.00081556]
[1773216602446,0.13122572,69681.0,69675.0,0.00081556]
[1773216602650,0.20298154,69681.0,69675.0,0.00081556]
[1773216602852,0.13111389,69680.0,69675.0,0.00049589]
[1773216603065,0.13211389,69680.0,69675.0,0.00049589]
[1773216603277,0.00011183,69681.0,69675.0,0.00049589]
[1773216603635,0.00111183,69681.0,69675.0,0.00049589]
[1773216603981,0.00011183,69681.0,69676.0,0.07176072]
[1773216604340,0.00011183,69681.0,69676.0,0.07125835]
[1773216606556,0.13111389,69680.0,69675.0,0.07225763]
[1773216607092,0.13111389,69680.0,69676.0,0.00116]
[1773216607246,0.13111389,69680.0,69677.0,0.00116]
[1773216607446,0.13111389,69680.0,69678.0,0.00116]
[1773216607671,0.13111389,69680.0,69667.0,0.07176924]
[1773216607888,0.13111389,69680.0,69668.0,0.00116]
[1773216608290,0.13111389,69678.0,69669.0,0.07176793]
[1773216608501,0.13111389,69678.0,69676.0,0.0002]
[1773216608668,0.13111389,69678.0,69677.0,0.00116]
[1773216609112,0.13111389,69678.0,69662.0,0.0002]
[1773216609287,0.13111389,69678.0,69664.0,0.18407283]
[1773216609664,0.13111389,69678.0,69657.0,0.07178027]
[1773216609665,0.13111389,69678.0,69665.0,0.00116]
[1773216610086,0.13211389,69678.0,69666.0,0.00116]
[1773216610286,0.13111389,69676.0,69667.0,0.00116]
[1773216610485,0.13111389,69676.0,69668.0,0.00116]
[1773216610694,0.13111389,69676.0,69666.0,0.00116]
[1773216610845,0.13111389,69676.0,69667.0,0.00116]
[1773216611048,0.11365678,69677.0,69668.0,0.00116]
[1773216611268,0.13111389,69677.0,69669.0,0.00116]
[1773216611468,0.13111389,69677.0,69670.0,0.00116]
[1773216611686,0.13111389,69677.0,69671.0,0.00116]
[1773216611899,0.13111389,69677.0,69672.0,0.00116]
[1773216612101,0.00015217,69677.0,69673.0,0.00116]
[1773216612296,0.00015217,69677.0,69674.0,0.07277062]
[1773216612496,0.00015217,69677.0,69674.0,0.00116]
[1773216612662,0.001,69676.0,69674.0,0.00116]
[1773216613301,0.00015217,69677.0,69674.0,0.00116]
[1773216613482,0.00015217,69677.0,69674.0,0.00216]
[1773216614213,0.00015217,69677.0,69674.0,0.07392272]
[1773216614512,0.00015217,69677.0,69674.0,0.00216]
[1773216614707,0.13111389,69676.0,69675.0,0.00116]
[1773216615812,0.13111389,69676.0,69653.0,0.07178403]
[1773216616014,0.13211389,69676.0,69653.0,0.07178403]
[1773216616215,0.13111389,69674.0,69664.0,0.0002]
[1773216616425,0.13111389,69674.0,69665.0,0.00116]
[1773216616595,0.13111389,69673.0,69666.0,0.00116]
[1773216616795,0.13111389,69673.0,69667.0,0.00116]
[1773216616996,0.13111389,69673.0,69668.0,0.00116]
[1773216617198,0.13111389,69673.0,69669.0,0.00116]
[1773216617402,0.18541853,69675.0,69669.0,0.00116]
[1773216617573,0.18541853,69675.0,69669.0,0.00100783]
[1773216617574,0.00015217,69673.0,69669.0,0.00100783]
[1773216617768,0.13111389,69672.0,69669.0,0.00116]
[1773216618396,0.13111389,69670.0,69659.0,0.07177724]
[1773216618605,0.13111389,69670.0,69660.0,0.00116]
[1773216619007,0.13111389,69670.0,69663.0,0.00071774]
[1773216620098,0.0062113,69670.0,69663.0,0.00071774]
[1773216620869,0.07797916,69670.0,69663.0,0.00071774]
[1773216621070,0.00015217,69669.0,69663.0,0.00071774]
[1773216621344,0.09534664,69669.0,69663.0,0.00071774]
[1773216622229,0.09534664,69669.0,69657.0,0.0002]
[1773216622407,0.09534664,69669.0,69658.0,0.00116]
[1773216622611,0.09534664,69669.0,69657.0,0.0002]
[1773216622822,0.09534664,69669.0,69658.0,0.00116]
[1773216623106,0.09519447,69667.0,69663.0,0.0002]
[1773216623944,0.09519447,69667.0,69658.0,0.00116]
[1773216625081,0.09519447,69665.0,69658.0,0.00116]
[1773216625482,0.09519447,69665.0,69659.0,0.00116]
[1773216625701,0.09519447,69665.0,69660.0,0.00116]
[1773216625910,0.09519447,69665.0,69656.0,0.0002]
[1773216626118,0.00015217,69664.0,69657.0,0.00116]
[1773216626308,0.09519447,69663.0,69657.0,0.00116]
[1773216626514,0.09519447,69663.0,69658.0,0.00116]
[1773216626953,0.09519447,69663.0,69659.0,0.00116]
[1773216627486,0.09519447,69661.0,69659.0,0.00116]
[1773216628068,0.09519447,69661.0,69660.0,0.00116]
[1773216628428,0.09519447,69661.0,69650.0,0.07221749]
[1773216628847,0.09519447,69661.0,69651.0,0.00116]
[1773216629209,0.09619447,69661.0,69650.0,0.07221749]
[1773216629391,0.0717772,69660.0,69652.0,0.00116]
[1773216629591,0.07192937,69660.0,69652.0,0.00116]
[1773216629734,0.07192937,69660.0,69653.0,0.00116]
[1773216630132,0.07192937,69660.0,69650.0,0.07221749]
[1773216630384,0.07192937,69660.0,69651.0,0.00116]
[1773216630581,0.03825534,69660.0,69650.0,0.07221749]
[1773216630763,0.07176999,69667.0,69653.0,0.06979421]
[1773216630958,0.07176856,69669.0,69653.0,0.06979421]
[1773216630959,0.07176896,69668.0,69653.0,0.06987978]
[1773216631583,0.07176856,69669.0,69655.0,0.06979421]
[1773216632148,0.00022001,69670.0,69655.0,0.06979421]
[1773216633374,0.00022001,69670.0,69654.0,0.07178338]
[1773216633579,0.00022001,69670.0,69655.0,0.06992364]